bitfinex-derivatives/quotes_SOLF0:USTF0_20250411
["timestamp","ask_amount","ask_price","bid_price","bid_amount"]
[1744390152299,8.2983,120.57,120.54,0.05453984]
[1744390152503,8.2983,120.57,120.54,8.35393984]
[1744390152805,33.58,120.6,120.54,8.35393984]
[1744390153107,8.2979,120.57,120.54,8.35393984]
[1744390153607,33.58,120.6,120.54,0.05453984]
[1744390154205,8.2977,120.58,120.55,8.2989]
[1744390154407,8.2977,120.58,120.54,0.05453984]
[1744390154710,8.2969,120.59,120.56,8.2984]
[1744390155004,33.58,120.6,120.56,0.06088694]
[1744390155201,8.2975,120.58,120.56,0.06088694]
[1744390155402,33.58,120.6,120.56,0.06088694]
[1744390155602,46.4676057,120.6,120.56,0.06088694]
[1744390156500,33.58,120.6,120.56,0.06088694]
[1744390156701,33.56,120.59,120.48,4.3672]
[1744390156907,8.2993,120.55,120.52,8.3009]
[1744390157203,12.8876057,120.58,120.51,12.8876057]
[1744390157407,12.8876057,120.58,120.49,12.8876057]
[1744390157608,8.299,120.56,120.52,8.3007]
[1744390157909,0.05381179,120.55,120.53,0.05504248]
[1744390158109,0.05381179,120.55,120.54,8.2996]
[1744390159508,0.05381179,120.55,120.54,21.1872057]
[1744390160307,0.05381179,120.55,120.54,54.7472057]
[1744390160511,0.05381179,120.55,120.54,41.8596]
[1744390164714,0.05381179,120.55,120.53,0.05504248]
[1744390165008,12.8876057,120.54,120.47,33.56]
[1744390165215,12.8876057,120.52,120.48,8.3038]
[1744390165514,12.8876057,120.5,120.44,33.56]
[1744390165704,12.8876057,120.5,120.46,8.3051]
[1744390166110,8.3035,120.49,120.44,33.56]
[1744390166312,8.36716982,120.49,120.47,0.05339521]
[1744390166611,0.06366982,120.49,120.47,8.35769521]
[1744390167114,8.36736982,120.49,120.47,0.05339521]
[1744390167612,0.06366982,120.49,120.47,0.05339521]
[1744390168314,21.1917057,120.48,120.47,0.05339521]
[1744390168815,12.90806982,120.49,120.47,0.05339521]
[1744390170914,0.06366982,120.49,120.47,0.05339521]
[1744390171113,0.06366982,120.49,120.48,16.07114985]
[1744390172118,0.06366982,120.49,120.47,0.05339521]
[1744390172510,0.06366982,120.49,120.48,8.3041]
[1744390172809,0.06366982,120.49,120.48,16.08509131]
[1744390173015,0.06366982,120.49,120.48,19.53361493]
[1744390173517,33.56,120.54,120.48,24.11712063]
[1744390173811,17.3003057,120.56,120.49,11.22951493]
[1744390174017,4.4127,120.56,120.53,8.3005]
[1744390174212,17.3003057,120.56,120.48,15.0438057]
[1744390174412,17.3003057,120.56,120.49,11.23505019]
[1744390174720,0.0522596,120.53,120.51,0.05578748]
[1744390175215,0.0522596,120.53,120.52,8.3013]
[1744390175822,0.0522596,120.53,120.51,0.05578748]
[1744390176315,0.0522596,120.53,120.52,8.3013]
[1744390176920,0.0522596,120.53,120.52,16.08884043]
[1744390177215,0.0522596,120.53,120.52,8.3013]
[1744390178513,0.0522596,120.53,120.52,16.08992616]
[1744390178718,0.0522596,120.53,120.51,8.35748748]
[1744390179623,0.0522596,120.53,120.51,0.05578748]
[1744390179807,8.3531596,120.53,120.51,0.05578748]
[1744390180009,0.0522596,120.53,120.51,0.05578748]
[1744390180622,8.3531596,120.53,120.51,0.05578748]
[1744390181022,0.0522596,120.53,120.51,0.05578748]
[1744390181322,8.3529596,120.53,120.51,0.05578748]
[1744390181524,0.0522596,120.53,120.51,0.05578748]
[1744390181722,8.303,120.5,120.44,38.0804]
[1744390182022,8.303,120.5,120.46,8.3051]
[1744390182224,8.303,120.5,120.47,11.24418778]
[1744390182424,8.303,120.5,120.46,8.3051]
[1744390182622,33.56,120.51,120.47,7.79248773]
[1744390182925,0.05318375,120.49,120.47,0.05685648]
[1744390183723,8.3041,120.48,120.47,0.05685648]
[1744390183919,0.05318375,120.49,120.47,0.05685648]
[1744390185120,8.3041,120.48,120.47,0.05685648]
[1744390185425,41.8641,120.48,120.47,0.05685648]
[1744390187027,33.56,120.48,120.47,0.05685648]
[1744390187223,0.05318375,120.49,120.47,0.05685648]
[1744390187624,0.05318375,120.49,120.47,8.36115648]
[1744390187922,0.05318375,120.49,120.47,0.05685648]
[1744390188228,0.05318375,120.49,120.48,8.3041]
[1744390189629,0.05318375,120.49,120.48,16.08166178]
[1744390190635,35.7925,120.54,120.48,11.22506655]
[1744390190824,35.7925,120.54,120.49,11.22506655]
[1744390191024,44.0928,120.54,120.51,8.3014]
[1744390191531,33.56,120.54,120.52,8.3012]
[1744390191732,0.05486333,120.54,120.51,0.05966723]
[1744390191929,0.05486333,120.54,120.52,7.77099538]
[1744390192130,0.05486333,120.54,120.53,8.3006]
[1744390192428,0.05486333,120.54,120.51,0.05966723]
[1744390192631,0.05486333,120.54,120.52,8.301]
[1744390192829,0.05486333,120.54,120.51,0.05966723]
[1744390193229,8.35516333,120.54,120.51,8.36136723]
[1744390193730,8.3008,120.53,120.51,0.05966723]
[1744390194735,8.35516333,120.54,120.51,8.36166723]
[1744390195030,0.05486333,120.54,120.51,0.05966723]
[1744390195434,8.3009,120.53,120.51,0.05966723]
[1744390196837,33.61486333,120.54,120.51,0.05966723]
[1744390197435,8.301,120.53,120.51,0.05966723]
[1744390197635,33.61486333,120.54,120.51,0.05966723]
[1744390198032,12.8876057,120.53,120.51,0.05966723]
[1744390198237,17.2461057,120.53,120.44,2.2174]
[1744390198432,17.2461057,120.53,120.45,11.23966433]
[1744390198433,8.3045,120.48,120.45,11.23966433]
[1744390198738,8.3045,120.48,120.46,7.78765135]
[1744390199234,8.36504985,120.48,120.46,0.0575]
[1744390199741,8.3048,120.47,120.46,0.0575]
[1744390200544,12.94815555,120.48,120.46,0.0575]
[1744390200840,0.06054985,120.48,120.46,0.0575]
[1744390201239,0.06054985,120.48,120.47,11.24478051]
[1744390201541,0.06054985,120.48,120.47,19.54958051]
[1744390202640,33.56,120.52,120.47,11.24478051]
[1744390202840,33.56,120.52,120.48,11.24478051]
[1744390203042,46.4476057,120.52,120.49,7.79121299]
[1744390203241,46.4476057,120.52,120.46,2.2111]
[1744390203434,12.8876057,120.5,120.47,11.24830342]
[1744390203736,12.94158641,120.5,120.42,2.1908]
[1744390204042,12.8876057,120.52,120.46,8.3052]
[1744390204242,21.1907057,120.5,120.46,8.3052]
[1744390204541,21.1907057,120.5,120.47,7.79733236]
[1744390204742,54.80461076,120.5,120.47,0.05352422]
[1744390205043,33.61390506,120.5,120.47,0.05352422]
[1744390205239,33.61390506,120.5,120.48,7.79532959]
[1744390205440,33.61390506,120.5,120.47,0.05352422]
[1744390206248,33.61390506,120.5,120.48,7.79773587]
[1744390206444,33.61390506,120.5,120.47,8.35772422]
[1744390206644,33.61390506,120.5,120.48,7.79772463]
[1744390206851,33.61390506,120.5,120.48,8.3038]
[1744390207048,33.61390506,120.5,120.47,0.05352422]
[1744390207352,41.91690506,120.5,120.47,8.35812422]
[1744390208158,41.91690506,120.5,120.48,7.80425644]
[1744390208353,46.50151076,120.5,120.47,0.05352422]
[1744390208659,12.8876057,120.48,120.47,0.05352422]
[1744390208853,21.1917057,120.48,120.47,0.05352422]
[1744390209955,12.8876057,120.48,120.4,33.56]
[1744390210159,33.56,120.47,120.44,8.3068]
[1744390210857,33.61435621,120.47,120.44,8.36078909]
[1744390211061,41.91945621,120.47,120.45,7.80277473]
[1744390211262,0.05435621,120.47,120.46,8.3054]
[1744390211758,0.05435621,120.47,120.46,16.1059341]
[1744390211956,0.05435621,120.47,120.46,19.56333173]
[1744390212759,0.05435621,120.47,120.46,7.8005341]
[1744390212961,8.35915621,120.47,120.46,11.26172758]
[1744390213160,8.35915621,120.47,120.44,0.05398909]
[1744390213462,8.35915621,120.47,120.45,11.27327721]
[1744390213757,41.91915621,120.47,120.44,8.36048909]
[1744390213960,41.91915621,120.47,120.45,7.80991813]
[1744390214148,41.91915621,120.47,120.44,8.36048909]
[1744390214350,41.91915621,120.47,120.45,7.81063362]
[1744390214552,33.61435621,120.47,120.44,0.05398909]
[1744390214956,8.3061,120.45,120.44,0.05398909]
[1744390215262,12.8876057,120.46,120.44,0.05398909]
[1744390215459,21.1933057,120.46,120.44,0.05398909]
[1744390215664,33.61435621,120.47,120.44,0.05398909]
[1744390215964,33.61435621,120.47,120.45,8.3057]
[1744390216158,33.61435621,120.47,120.44,0.05398909]
[1744390216159,0.05435621,120.47,120.44,0.05398909]
[1744390216366,33.56,120.5,120.45,11.26496562]
[1744390216665,33.56,120.5,120.48,8.3037]
[1744390217366,33.56,120.5,120.44,46.4476057]
[1744390217566,33.62274098,120.5,120.48,0.06156712]
[1744390217959,33.62274098,120.5,120.48,8.36516712]
[1744390218267,29.20635062,120.52,120.49,11.26101206]
[1744390218566,29.20635062,120.52,120.51,8.302]
[1744390218766,29.20635062,120.52,120.51,16.10549398]
[1744390218967,29.20635062,120.52,120.51,8.302]
[1744390219168,29.20635062,120.52,120.51,16.10177027]
[1744390220067,0.051947,120.53,120.52,8.3013]
[1744390220967,0.051947,120.53,120.51,8.36238534]
[1744390221156,0.051947,120.53,120.51,0.06038534]
[1744390221869,33.611947,120.53,120.51,0.06038534]
[1744390222066,41.913147,120.53,120.51,0.06038534]
[1744390222970,12.8876057,120.52,120.45,12.8876057]
[1744390223168,12.8876057,120.52,120.46,11.26599568]
[1744390223365,12.8876057,120.52,120.47,11.26599568]
[1744390223672,12.8876057,120.48,120.43,2.129]
[1744390223875,33.56,120.47,120.44,7.81452327]
[1744390224170,33.61398184,120.47,120.44,0.05727147]
[1744390224471,41.91908184,120.47,120.45,7.81629643]
[1744390224663,33.61398184,120.47,120.44,0.05727147]
[1744390225066,8.3058,120.46,120.44,0.05727147]
[1744390225371,33.61398184,120.47,120.44,0.05727147]
[1744390225758,8.3061,120.45,120.44,0.05727147]
[1744390229571,20.66255449,120.46,120.33,20.66255449]
[1744390229876,20.66255449,120.44,120.34,17.75392485]
[1744390230075,20.66255449,120.44,120.36,8.3118]
[1744390230076,8.3099,120.4,120.36,8.3118]
[1744390230275,8.3099,120.4,120.37,11.26662485]
[1744390230469,41.869,120.41,120.38,7.80615422]
[1744390230676,0.05913209,120.4,120.38,7.80615422]
[1744390231172,0.05913209,120.4,120.39,16.11052478]
[1744390231372,0.05913209,120.4,120.39,8.3103]
[1744390231871,33.61913209,120.4,120.37,0.05343259]
[1744390232769,8.3109,120.39,120.37,0.05343259]
[1744390232970,33.61913209,120.4,120.37,0.05343259]
[1744390233471,8.311,120.38,120.37,0.05343259]
[1744390233670,33.61913209,120.4,120.3,54.22255449]
[1744390233872,35.686,120.4,120.31,17.83528513]
[1744390234076,8.312,120.37,120.34,8.3137]
[1744390234276,35.686,120.4,120.31,6.5813]
[1744390234478,35.686,120.4,120.32,19.56814938]
[1744390234775,0.05233228,120.37,120.35,0.05300959]
[1744390234974,8.3123,120.36,120.35,0.05300959]
[1744390235174,0.05233228,120.37,120.35,0.05300959]
[1744390235769,0.05233228,120.37,120.36,8.3123]
[1744390235978,33.58,120.42,120.35,0.05300959]
[1744390236277,33.58,120.42,120.34,20.66255449]
[1744390236482,8.3092,120.41,120.35,11.22915632]
[1744390236672,33.58,120.42,120.36,7.77790766]
[1744390236868,8.3091,120.41,120.38,8.3105]
[1744390237073,0.05449131,120.4,120.38,0.05960664]
[1744390237375,0.05449131,120.4,120.39,8.3096]
[1744390240271,8.3074,120.44,120.41,8.3089]
[1744390240875,8.3074,120.44,120.42,8.308]
[1744390241173,33.58,120.48,120.41,20.66255449]
[1744390241373,0.05346592,120.44,120.43,8.3075]
[1744390241574,41.8846,120.48,120.42,0.0554815]
[1744390241779,0.05997393,120.45,120.43,2.1171]
[1744390242579,0.05997393,120.45,120.42,0.0554815]
[1744390242783,33.61997393,120.45,120.42,0.0554815]
[1744390243080,20.66255449,120.43,120.31,54.22255449]
[1744390243281,33.56,120.42,120.34,4.3817]
[1744390243484,8.3099,120.4,120.37,8.3113]
[1744390243979,8.3103,120.39,120.37,8.3113]
[1744390244171,8.3103,120.39,120.37,8.36436102]
[1744390244375,0.05605693,120.4,120.37,8.36436102]
[1744390244570,8.36595693,120.4,120.37,8.36436102]
[1744390244780,0.05605693,120.4,120.37,8.36436102]
[1744390244978,0.05605693,120.4,120.37,0.05306102]
[1744390245580,8.36605693,120.4,120.37,8.36436102]
[1744390246878,29.20635062,120.49,120.38,54.34255449]
[1744390247082,69.46055062,120.49,120.4,20.66255449]
[1744390247375,8.3051,120.47,120.41,44.91704713]
[1744390247582,62.88635062,120.49,120.42,20.66255449]
[1744390247777,62.88635062,120.49,120.43,7.78092637]
[1744390247970,8.36495757,120.47,120.45,0.0633317]
[1744390248177,0.05995757,120.47,120.45,0.0633317]
[1744390248583,0.05995757,120.47,120.46,8.3054]
[1744390249183,0.05995757,120.47,120.46,16.08288898]
[1744390249382,33.68,120.52,120.46,7.77748898]
[1744390249582,33.68,120.52,120.44,33.68]
[1744390249887,33.68,120.52,120.45,11.22179872]
[1744390250088,33.68,120.52,120.49,8.303]
[1744390250388,33.73545104,120.52,120.49,0.05974227]
[1744390251281,8.3027,120.5,120.49,0.05974227]
[1744390253993,20.66255449,120.51,120.41,33.68]
[1744390254191,33.68,120.5,120.42,7.78248157]
[1744390254489,33.68,120.5,120.41,33.68]
[1744390254689,33.68,120.5,120.42,11.23240293]
[1744390254891,33.68,120.5,120.43,7.7823681]
[1744390255186,0.05986703,120.47,120.45,0.06027531]
[1744390255594,0.05986703,120.47,120.46,8.3049]
[1744390257797,0.05986703,120.47,120.45,0.06027531]
[1744390258390,0.05986703,120.47,120.46,8.3054]
[1744390259394,0.05986703,120.47,120.45,0.06027531]
[1744390259395,33.68,120.53,120.47,8.3046]
[1744390259594,8.3031,120.5,120.44,54.34255449]
[1744390259794,33.68,120.53,120.48,8.304]
[1744390259994,33.68,120.53,120.45,2.126]
[1744390260298,0.05236108,120.5,120.48,0.06123463]
[1744390260998,8.35556108,120.5,120.48,0.06123463]
[1744390261295,0.05236108,120.5,120.48,0.06123463]
[1744390261999,8.3034,120.49,120.48,0.06123463]
[1744390262498,8.3058,120.46,120.43,10.5795]
[1744390262695,33.68,120.49,120.42,2.1869]
[1744390262896,35.9212,120.49,120.43,7.78362164]
[1744390263103,8.3041,120.48,120.45,8.3058]
[1744390263500,8.36631211,120.48,120.45,8.35938916]
[1744390264301,8.3048,120.47,120.45,8.35938916]
[1744390264701,0.06221211,120.48,120.45,8.35938916]
[1744390264900,8.3051,120.47,120.45,0.05358916]
[1744390265602,0.06221211,120.48,120.45,0.05358916]
[1744390266004,20.7247666,120.48,120.45,0.05358916]
[1744390266305,20.7247666,120.48,120.4,2.126]
[1744390266506,8.3068,120.45,120.41,7.80048606]
[1744390266705,33.68,120.46,120.4,2.126]
[1744390266909,33.68,120.46,120.41,11.25706145]
[1744390267100,33.68,120.46,120.42,7.79958811]
[1744390267300,0.0557568,120.45,120.43,7.79476247]
[1744390267607,8.3068,120.44,120.42,8.37170434]
[1744390267805,0.0557568,120.45,120.42,8.37170434]
[1744390268105,0.0557568,120.45,120.42,0.06380434]
[1744390268505,8.307,120.44,120.42,0.06380434]
[1744390269200,8.307,120.44,120.42,8.37190434]
[1744390269805,8.3622568,120.45,120.42,8.37190434]
[1744390270404,8.3069,120.44,120.42,8.37190434]
[1744390270597,8.3069,120.44,120.42,0.06380434]
[1744390272209,8.3075,120.43,120.42,0.06380434]
[1744390273207,8.3072,120.44,120.42,0.06380434]
[1744390273409,4.4956568,120.45,120.42,0.06380434]
[1744390273707,12.8021568,120.45,120.42,0.06380434]
[1744390274206,12.8021568,120.45,120.42,8.37150434]
[1744390277309,0.0557568,120.45,120.42,0.06380434]
[1744390277505,0.0557568,120.45,120.43,11.25101651]
[1744390277705,29.20635062,120.51,120.44,65.473571]
[1744390277910,29.20635062,120.51,120.45,13.31891651]
[1744390278108,37.50875062,120.51,120.48,8.3036]
[1744390278501,8.3028,120.5,120.48,8.3036]
[1744390278707,8.36010832,120.5,120.48,0.05439835]
[1744390278902,0.05730832,120.5,120.48,0.05439835]
[1744390279209,8.3034,120.49,120.48,0.05439835]
[1744390279408,41.8634,120.49,120.48,0.05439835]
[1744390279807,33.56,120.49,120.42,4.3475]
[1744390280014,33.56,120.49,120.43,7.80062044]
[1744390280310,33.56,120.49,120.38,58.73795449]
[1744390280311,8.3064,120.45,120.42,8.3079]
[1744390280510,8.3064,120.45,120.43,7.80819564]
[1744390280712,8.3064,120.45,120.42,8.3079]
[1744390280901,0.06286376,120.45,120.42,0.05552495]
[1744390281415,0.06286376,120.45,120.43,7.80713535]
[1744390281711,0.06286376,120.45,120.42,0.05552495]
[1744390281914,0.06286376,120.45,120.43,7.80354206]
[1744390282107,0.06286376,120.45,120.42,0.05552495]
[1744390282617,8.36926376,120.45,120.42,8.36342495]
[1744390282813,8.36926376,120.45,120.42,0.05552495]
[1744390283116,0.06286376,120.45,120.42,0.05552495]
[1744390283415,8.3073,120.44,120.42,0.05552495]
[1744390284113,8.3075,120.43,120.42,0.05552495]
[1744390284313,4.51476376,120.45,120.42,0.05552495]
[1744390284615,8.3075,120.43,120.42,0.05552495]
[1744390286218,33.56,120.43,120.31,20.66255449]
[1744390286413,22.76585449,120.42,120.32,44.8418269]
[1744390286612,22.76585449,120.42,120.33,11.2818269]
[1744390286812,22.76585449,120.42,120.35,8.3127]
[1744390287118,20.66255449,120.4,120.36,7.81661486]
[1744390287313,8.311,120.38,120.37,0.05567723]
[1744390287920,8.3139,120.34,120.29,33.58]
[1744390288120,33.58,120.36,120.3,11.274923]
[1744390288321,33.58,120.36,120.31,11.274923]
[1744390288620,8.3141,120.34,120.32,11.27248117]
[1744390288824,8.3141,120.34,120.33,7.80938332]
[1744390289020,8.3144,120.33,120.32,0.06063884]
[1744390289218,33.58,120.33,120.27,6.5966]
[1744390289415,33.58,120.33,120.28,11.28054979]
[1744390289616,33.58,120.33,120.29,11.27683344]
[1744390289924,2.0725,120.35,120.3,11.27587293]
[1744390290121,2.0725,120.35,120.28,20.66255449]
[1744390290322,8.314,120.34,120.3,8.3162]
[1744390290515,0.05447653,120.33,120.3,8.37097278]
[1744390290715,0.05447653,120.33,120.3,0.05477278]
[1744390290915,0.05447653,120.33,120.31,8.3156]
[1744390291924,0.05447653,120.33,120.32,8.3151]
[1744390293219,0.05447653,120.33,120.31,8.3154]
[1744390294625,0.05447653,120.33,120.32,8.3151]
[1744390294925,0.05447653,120.33,120.3,0.05477278]
[1744390295428,0.05447653,120.33,120.31,8.3155]
[1744390295626,0.05447653,120.33,120.3,0.05477278]
[1744390296027,0.05447653,120.33,120.31,8.3154]
[1744390297326,0.05447653,120.33,120.32,8.3151]
[1744390298426,0.05447653,120.33,120.3,0.05477278]
[1744390298930,0.05447653,120.33,120.32,8.3151]
[1744390299827,635.9946,120.39,120.35,8.3125]
[1744390300328,37.9746,120.39,120.35,8.3125]
[1744390300528,33.58,120.39,120.32,54.24255449]
[1744390300725,33.58,120.39,120.33,7.75587935]
[1744390300919,4.2054,120.42,120.38,8.3109]
[1744390301123,8.3087,120.42,120.36,20.66255449]
[1744390301526,35.844,120.43,120.38,8.3104]
[1744390301730,8.3092,120.41,120.38,8.3104]
[1744390302031,35.844,120.43,120.35,33.58]
[1744390302231,8.3106,120.39,120.38,0.05366474]
[1744390302424,41.8906,120.39,120.38,0.05366474]
[1744390303531,8.3126,120.36,120.32,33.58]
[1744390303829,35.6745,120.39,120.32,33.58]
[1744390304028,33.58,120.42,120.33,7.7574821]
[1744390304233,33.58,120.42,120.36,20.66255449]
[1744390304531,33.58,120.42,120.4,8.3093]
[1744390304730,12.6663,120.43,120.4,8.3093]
[1744390304928,0.05724812,120.42,120.4,8.3093]
[1744390305127,8.36554812,120.42,120.4,8.3093]
[1744390306034,0.05724812,120.42,120.4,8.3093]
[1744390306431,0.05724812,120.42,120.41,8.3089]
[1744390307033,0.05724812,120.42,120.38,33.63851275]
[1744390308028,0.05724812,120.42,120.38,41.94911275]
[1744390308434,0.05724812,120.42,120.38,33.63851275]
[1744390308632,8.36594812,120.42,120.39,8.3103]
[1744390310732,0.05724812,120.42,120.38,0.05851275]
[1744390321144,33.58,120.41,120.38,0.05851275]
[1744390321344,19.48207962,120.4,120.38,0.05851275]
[1744390321739,33.58,120.41,120.38,0.05851275]
[1744390322339,12.92877962,120.4,120.29,33.58]
[1744390322543,12.92877962,120.38,120.3,11.23609508]
[1744390322745,37.915,120.37,120.31,11.23609508]
[1744390322938,37.915,120.37,120.28,50.84527962]
[1744390323141,37.915,120.37,120.29,11.2399842]
[1744390323341,12.92877962,120.36,120.3,11.2399842]
[1744390323639,12.98778814,120.34,120.32,0.05778643]
[1744390323840,33.58,120.33,120.25,52.97787962]
[1744390324036,33.58,120.33,120.26,11.26270791]
[1744390324245,0.05899759,120.3,120.28,0.05509664]
[1744390324445,0.05899759,120.3,120.29,11.26270791]
[1744390325446,0.05899759,120.3,120.29,11.26236026]
[1744390325945,0.05899759,120.3,120.29,7.80325817]
[1744390326747,0.05899759,120.3,120.28,0.05509664]
[1744390326945,0.05899759,120.3,120.29,7.8145854]
[1744390327245,4.335,120.37,120.29,11.27844973]
[1744390327451,4.335,120.37,120.3,34.16221241]
[1744390327650,4.335,120.37,120.31,44.85844973]
[1744390327851,33.58,120.39,120.32,11.27844973]
[1744390328049,33.58,120.39,120.33,11.27844973]
[1744390328252,0.06371143,120.37,120.34,0.06108393]
[1744390332253,33.58,120.36,120.34,0.06108393]
[1744390332558,20.70036268,120.35,120.28,33.58]
[1744390332856,20.70036268,120.35,120.14,192.1177581]
[1744390332857,25.01926268,120.35,120.29,11.28740758]
[1744390333058,20.70036268,120.33,120.25,33.58]
[1744390333349,33.58,120.32,120.26,19.60496615]
[1744390333551,0.06245227,120.3,120.28,0.0560293]
[1744390333853,8.3172,120.29,120.28,0.0560293]
[1744390334350,8.37925227,120.3,120.28,0.0560293]
[1744390334653,0.06245227,120.3,120.29,7.82044647]
[1744390335053,37.8989,120.35,120.29,7.82044647]
[1744390335054,37.8989,120.35,120.29,11.28676635]
[1744390335247,37.8989,120.35,120.3,7.82044647]
[1744390335446,37.8989,120.35,120.28,37.884]
[1744390335643,58.59926268,120.35,120.29,11.2852053]
[1744390335849,58.59926268,120.35,120.28,37.884]
[1744390336046,58.59926268,120.35,120.29,11.28660178]
[1744390336351,0.05755287,120.33,120.3,7.87963771]
[1744390336549,0.05755287,120.33,120.3,0.0629759]
[1744390337154,0.05755287,120.33,120.31,8.3154]
[1744390337755,0.05755287,120.33,120.31,8.3158]
[1744390338055,0.05755287,120.33,120.3,0.0629759]
[1744390338554,0.05755287,120.33,120.31,11.26219787]
[1744390338745,0.05755287,120.33,120.3,0.0629759]
[1744390338947,0.05755287,120.33,120.31,11.25735346]
[1744390339142,0.05755287,120.33,120.32,7.79712083]
[1744390339358,37.9198,120.38,120.34,8.3134]
[1744390339546,37.9198,120.38,120.31,35.9156]
[1744390339747,46.2312,120.38,120.32,11.24938214]
[1744390339948,37.9198,120.38,120.33,16.10821386]
[1744390340152,37.9198,120.38,120.33,8.3141]
[1744390340357,8.3127,120.36,120.33,8.3141]
[1744390340557,0.05573768,120.37,120.34,0.0624145]
[1744390341352,0.05573768,120.37,120.35,16.10473104]
[1744390341654,0.05573768,120.37,120.34,0.0624145]
[1744390341857,0.05573768,120.37,120.36,8.3123]
[1744390342057,0.05573768,120.37,120.36,16.0977653]
[1744390342552,0.05573768,120.37,120.36,8.3123]
[1744390343155,0.05573768,120.37,120.36,16.09706924]
[1744390343354,0.05573768,120.37,120.36,8.3123]
[1744390343951,0.05573768,120.37,120.36,16.09791745]
[1744390344151,0.05573768,120.37,120.36,16.09721519]
[1744390344758,0.05573768,120.37,120.36,16.09620637]
[1744390345058,0.05573768,120.37,120.35,8.3126]
[1744390346162,0.05573768,120.37,120.36,8.3123]
[1744390346454,0.05573768,120.37,120.34,0.0624145]
[1744390347261,15.28623589,120.37,120.34,0.0624145]
[1744390347664,8.313,120.35,120.34,0.0624145]
[1744390348260,0.05573768,120.37,120.34,0.0624145]
[1744390348963,0.05573768,120.37,120.35,8.3129]
[1744390349153,0.05573768,120.37,120.34,0.0624145]
[1744390349466,0.05573768,120.37,120.35,8.313]
[1744390350464,0.05573768,120.37,120.36,16.09636289]
[1744390350667,0.05573768,120.37,120.36,8.3123]
[1744390351165,0.05573768,120.37,120.36,16.09685425]
[1744390353366,0.05573768,120.37,120.36,19.54960618]
[1744390353560,0.05573768,120.37,120.36,16.09685425]
[1744390353760,0.05573768,120.37,120.36,19.54958485]
[1744390353969,0.05573768,120.37,120.36,16.09685425]
[1744390354868,0.05573768,120.37,120.36,19.54897098]
[1744390355873,0.05573768,120.37,120.36,11.23667098]
[1744390356166,0.05573768,120.37,120.36,7.78455425]
[1744390357063,0.05573768,120.37,120.36,19.54935735]
[1744390357269,33.66,120.44,120.36,11.23705735]
[1744390357468,33.66,120.44,120.37,13.43345735]
[1744390357659,41.9675,120.44,120.4,8.3092]
[1744390357863,33.66,120.44,120.4,8.3092]
[1744390358170,8.3075,120.43,120.4,8.3092]
[1744390358370,0.05829785,120.43,120.41,8.36117643]
[1744390358666,0.05829785,120.43,120.41,0.05227643]
[1744390358865,0.05829785,120.43,120.42,8.3082]
[1744390359165,0.05829785,120.43,120.41,0.05227643]
[1744390359769,0.05829785,120.43,120.41,8.36047643]
[1744390359965,0.05829785,120.43,120.41,33.71227643]
[1744390360174,33.66,120.47,120.42,11.22052687]
[1744390360471,29.3168716,120.48,120.45,8.3061]
[1744390360768,37.6213716,120.48,120.45,8.3061]
[1744390361269,37.68180444,120.48,120.45,8.36967499]
[1744390362774,8.36493284,120.48,120.45,8.36967499]
[1744390364374,8.3048,120.47,120.45,0.06357499]
[1744390364675,0.06043284,120.48,120.45,0.06357499]
[1744390365074,8.3054,120.46,120.45,0.06357499]
[1744390365675,8.3072,120.44,120.38,2.0833]
[1744390365871,8.3072,120.44,120.39,7.75029006]
[1744390366174,41.9472,120.44,120.4,8.3092]
[1744390366367,41.9472,120.44,120.38,2.0833]
[1744390366569,41.9472,120.44,120.4,8.3092]
[1744390366875,0.05866227,120.42,120.4,0.05306494]
[1744390367068,2.2512,120.5,120.46,8.3054]
[1744390367371,2.2512,120.5,120.44,33.56]
[1744390367669,2.2512,120.5,120.45,8.3058]
[1744390367869,8.3027,120.5,120.44,33.56]
[1744390368272,0.05344248,120.48,120.46,8.36763745]
[1744390368672,0.05344248,120.48,120.46,0.06263745]
[1744390368874,0.05344248,120.48,120.47,8.3048]
[1744390370882,0.05344248,120.48,120.46,0.06263745]
[1744390371581,0.05344248,120.48,120.47,8.3048]
[1744390374879,0.05344248,120.48,120.46,8.36773745]
[1744390375183,0.05344248,120.48,120.46,0.06263745]
[1744390375485,0.05344248,120.48,120.47,8.3048]
[1744390375681,0.05344248,120.48,120.46,0.06263745]
[1744390376178,0.05344248,120.48,120.46,8.36773745]
[1744390376386,0.05344248,120.48,120.46,0.06263745]
[1744390376887,0.05344248,120.48,120.46,8.36773745]